bitfinex-derivatives/quotes_BTCF0:USTF0_20251011
["timestamp","ask_amount","ask_price","bid_price","bid_amount"]
[1760141905223,0.001,111930.0,111900.0,0.3608]
[1760141905224,0.62474924,111930.0,111900.0,0.3608]
[1760141905414,0.0892095,111920.0,111900.0,0.36076]
[1760141905616,0.53554774,111930.0,111890.0,0.3608]
[1760141905819,0.0892435,111890.0,111880.0,0.3608]
[1760141906127,0.0892515,111880.0,111870.0,0.44093]
[1760141906422,0.0892595,111870.0,111860.0,0.3608]
[1760141906623,0.13413562,111880.0,111860.0,0.3608]
[1760141906818,0.13413562,111870.0,111860.0,0.3608]
[1760141907019,0.89493562,111880.0,111850.0,0.3608]
[1760141907215,0.089277,111850.0,111840.0,0.3608]
[1760141907418,0.3608,111860.0,111840.0,0.3608]
[1760141907612,8.966e-05,111870.0,111850.0,0.3608]
[1760141907815,0.13400142,111860.0,111850.0,0.3608]
[1760141908020,0.0892697,111860.0,111840.0,0.3608]
[1760141908214,8.966e-05,111870.0,111850.0,0.3608]
[1760141908415,0.13400142,111860.0,111850.0,0.3608]
[1760141908618,0.3608,111890.0,111850.0,0.3608]
[1760141908816,0.13498737,111860.0,111850.0,0.3608]
[1760141909016,0.089276,111860.0,111850.0,0.3608]
[1760141909220,0.0892646,111870.0,111850.0,0.3608]
[1760141909419,0.0892646,111870.0,111860.0,0.3608]
[1760141909420,0.04495983,111870.0,111860.0,0.3608]
[1760141909622,0.13337596,111870.0,111860.0,0.3608]
[1760141909816,0.22263806,111870.0,111860.0,0.3608]
[1760141910016,0.2227334,111870.0,111860.0,0.3608]
[1760141910224,0.1334713,111870.0,111860.0,0.3608]
[1760141910425,0.1334713,111870.0,111860.0,0.7608]
[1760141910621,0.2227334,111870.0,111860.0,0.3608]
[1760141910819,0.2227334,111870.0,111850.0,0.4500779]
[1760141910820,0.17846684,111870.0,111850.0,0.4500779]
[1760141911020,0.17846684,111870.0,111860.0,0.3608]
[1760141911224,0.26873014,111870.0,111850.0,0.3608]
[1760141911521,0.0892701,111860.0,111840.0,0.3608]
[1760141911726,0.089278,111850.0,111840.0,0.3608]
[1760141912122,0.13469318,111850.0,111840.0,0.3608]
[1760141912321,0.13469318,111850.0,111840.0,0.9302164]
[1760141912723,0.20583886,111850.0,111840.0,0.5302164]
[1760141913328,0.20583886,111850.0,111840.0,0.9302164]
[1760141913630,0.02394438,111850.0,111840.0,0.9302164]
[1760141913818,0.3608,111930.0,111880.0,0.1693791]
[1760141914019,0.5352855,111930.0,111890.0,0.3608]
[1760141914223,0.0892302,111910.0,111900.0,0.3608]
[1760141914633,0.62347254,111910.0,111900.0,0.3608]
[1760141915018,0.62347254,111910.0,111900.0,0.13849685]
[1760141915225,0.0892671,111870.0,111850.0,0.3608]
[1760141915524,0.45007,111860.0,111840.0,0.44193]
[1760141915721,0.089278,111850.0,111840.0,0.001]
[1760141915928,0.08937345,111850.0,111840.0,0.001]
[1760141916229,0.089294,111830.0,111820.0,0.36088325]
[1760141916424,0.089294,111830.0,111820.0,8.325e-05]
[1760141916727,0.13366669,111830.0,111820.0,8.325e-05]
[1760141917025,0.13366669,111830.0,111820.0,0.56951475]
[1760141917234,0.04569711,111870.0,111850.0,0.0892717]
[1760141917524,0.13336166,111870.0,111860.0,0.3608]
[1760141917725,0.0892313,111910.0,111880.0,0.0892473]
[1760141917931,0.0892177,111920.0,111900.0,0.3608]
[1760141918127,0.38390372,111940.0,111910.0,0.3608]
[1760141918320,0.13336166,111920.0,111900.0,0.44046]
[1760141918521,0.089195,111950.0,111910.0,0.4500254]
[1760141918723,0.08918,111970.0,111940.0,0.44046]
[1760141918929,0.06131802,112020.0,111960.0,0.80126]
[1760141919126,0.04598816,112030.0,112010.0,0.3608]
[1760141919322,0.22358274,112020.0,112010.0,0.33916908]
[1760141919527,0.7064892,112020.0,111970.0,0.3608]
[1760141919725,0.0891516,112010.0,111990.0,0.3608]
[1760141919931,0.10688923,112070.0,112000.0,0.3608]
[1760141920147,0.0891128,112050.0,112040.0,0.3608]
[1760141920326,0.0891347,112030.0,112020.0,0.3608]
[1760141920627,0.0891347,112030.0,112010.0,0.3608]
[1760141920628,0.2237837,112030.0,112010.0,0.3608]
[1760141920828,0.08921374,112020.0,112010.0,0.3608]
[1760141921132,0.223791,112020.0,112010.0,0.3608]
[1760141921325,0.0891536,112000.0,111980.0,0.3608]
[1760141921522,0.0891536,112000.0,111990.0,0.3608]
[1760141921723,0.13370571,112000.0,111990.0,0.3608]
[1760141921933,0.13381577,112000.0,111990.0,0.7608]
[1760141922134,0.3618,112050.0,111990.0,0.9296216]
[1760141922336,0.090114,112050.0,112040.0,0.3608]
[1760141922632,0.09067573,112040.0,112030.0,0.3608]
[1760141922835,0.4456083,112040.0,112000.0,0.3608]
[1760141923129,0.001,112020.0,112000.0,0.3608]
[1760141923331,0.001,112020.0,112010.0,0.3608]
[1760141923535,0.6234153,112020.0,112010.0,0.3608]
[1760141923732,0.0891535,112000.0,111990.0,0.3608]
[1760141923927,0.08925405,112000.0,111990.0,0.3608]
[1760141924238,0.1343038,112000.0,111990.0,0.3608]
[1760141924437,0.6234567,112000.0,111990.0,0.3608]
[1760141924630,0.1343038,112000.0,111990.0,0.3608]
[1760141924838,0.6234567,112000.0,111990.0,0.3608]
[1760141925029,0.6234567,112000.0,111980.0,0.3608]
[1760141925338,0.2234567,112000.0,111990.0,0.3608]
[1760141925534,0.2244567,112000.0,111990.0,0.3608]
[1760141925935,0.0891611,111990.0,111980.0,0.3608]
[1760141926132,0.8961038,112000.0,111970.0,0.3608]
[1760141926439,0.0891758,111970.0,111950.0,0.3608]
[1760141926644,0.0891687,111980.0,111960.0,0.3608]
[1760141926935,0.22245803,111980.0,111970.0,0.3608]
[1760141927136,0.13336304,111980.0,111970.0,0.3608]
[1760141927529,0.13336304,111980.0,111970.0,0.7608]
[1760141928343,0.13336304,111980.0,111970.0,0.7618]
[1760141929634,0.13336304,111980.0,111970.0,0.3618]
[1760141929836,0.7805077,112030.0,111970.0,0.3608]
[1760141930042,0.7805077,112030.0,112000.0,0.3608]
[1760141930236,0.0891433,112010.0,112000.0,0.3608]
[1760141930642,0.0891511,112000.0,111990.0,0.3608]
[1760141931035,0.22391413,112000.0,111990.0,0.3608]
[1760141931336,0.0891583,111990.0,111980.0,0.3608]
[1760141931533,0.00010727,111990.0,111980.0,1.2876849]
[1760141931734,0.13433968,111990.0,111980.0,1.2876849]
[1760141932036,0.0891236,112030.0,111990.0,0.0891578]
[1760141932239,0.8503096,112060.0,112020.0,0.3608]
[1760141932535,0.98401499,112060.0,112030.0,0.36048916]
[1760141933031,0.089153,112000.0,111980.0,0.3608]
[1760141933238,0.089153,112000.0,111970.0,0.3608]
[1760141933239,0.0891545,111990.0,111970.0,0.3608]
[1760141933628,0.22384598,111990.0,111970.0,0.3608]
[1760141933829,0.13469148,111990.0,111980.0,0.3608]
[1760141934633,0.0891484,112000.0,111980.0,0.7608]
[1760141934837,0.3608,112030.0,111990.0,0.3608]
[1760141935034,0.3608,112030.0,112000.0,0.3608]
[1760141935235,0.49525479,112020.0,111990.0,0.3608]
[1760141935433,0.0891378,112010.0,112000.0,0.3608]
[1760141935734,0.1347731,112010.0,112000.0,0.3608]
[1760141935928,0.09859798,112020.0,112000.0,0.7608]
[1760141936133,0.0891219,112030.0,112010.0,0.3608]
[1760141936339,0.22381978,112020.0,112010.0,0.3608]
[1760141936534,0.0891307,112020.0,112000.0,0.3608]
[1760141936734,0.089124,112030.0,112010.0,0.3608]
[1760141937036,0.13345218,112030.0,112020.0,0.3608]
[1760141937235,0.22257358,112030.0,112020.0,0.3608]
[1760141937436,0.0891322,112020.0,112010.0,0.3608]
[1760141937634,0.0891285,112020.0,112010.0,0.3608]
[1760141937836,0.0891285,112020.0,112000.0,0.3608]
[1760141937837,0.0891365,112010.0,112000.0,0.3608]
[1760141938141,0.13453685,112010.0,112000.0,0.3608]
[1760141938432,0.22367425,112010.0,112000.0,0.3608]
[1760141938639,0.22367425,112010.0,111990.0,0.3608]
[1760141938640,0.0891464,112000.0,111990.0,0.3608]
[1760141939036,0.22370602,112000.0,111990.0,0.3608]
[1760141939437,0.22370882,112000.0,111980.0,0.3608]
[1760141939633,0.22370882,112000.0,111980.0,0.7608]
[1760141939833,0.089155,111990.0,111980.0,0.3608]
[1760141940234,0.22338906,111990.0,111980.0,0.3608]
[1760141940536,0.13423406,111990.0,111980.0,0.9268831]
[1760141940744,0.13423406,111990.0,111980.0,0.83772]
[1760141941132,0.13423406,111990.0,111980.0,0.9268915]
[1760141941330,0.12695461,111990.0,111980.0,0.3608]
[1760141941531,0.12695461,111990.0,111970.0,0.3608]
[1760141941532,0.0891717,111980.0,111970.0,0.3608]
[1760141941741,0.0891824,111970.0,111960.0,0.35708938]
[1760141941937,0.5351427,111960.0,111920.0,0.05528576]
[1760141942132,0.7216,111930.0,111890.0,0.3608]
[1760141942333,0.0892462,111890.0,111870.0,0.06324202]
[1760141942643,0.0892617,111870.0,111860.0,0.14229455]
[1760141942831,0.0892775,111850.0,111830.0,0.0137089]
[1760141943037,0.3608,111850.0,111830.0,0.0137089]
[1760141943233,0.0892867,111840.0,111820.0,0.43772]
[1760141943434,0.13375296,111850.0,111830.0,0.7608]
[1760141943634,0.13499991,111840.0,111830.0,0.7608]
[1760141943832,0.13499991,111850.0,111830.0,0.3608]
[1760141944041,0.3608,111840.0,111810.0,0.43985253]
[1760141944343,0.58508911,111840.0,111810.0,0.43985253]
[1760141944534,0.3608,111820.0,111800.0,0.51677253]
[1760141944841,0.4501097,111810.0,111780.0,0.27256296]
[1760141945143,0.13474338,111810.0,111780.0,0.52268941]
[1760141945440,0.0893168,111800.0,111790.0,0.07905253]
[1760141945634,0.04108014,111800.0,111790.0,0.07905253]
[1760141945835,0.13415087,111800.0,111790.0,0.07905253]
[1760141946035,0.13415087,111800.0,111780.0,0.52268941]
[1760141946244,0.13315087,111800.0,111790.0,0.47905253]
[1760141946540,0.06079959,111800.0,111790.0,0.07912308]
[1760141946735,0.42159959,111800.0,111790.0,0.08112308]
[1760141946939,0.46629995,111800.0,111760.0,0.35130859]
[1760141947137,0.4501628,111750.0,111740.0,7e-08]
[1760141947434,0.0893923,111720.0,111690.0,0.07692]
[1760141947639,0.3608,111720.0,111690.0,0.08586934]
[1760141947936,0.3608,111700.0,111690.0,0.07692]
[1760141948147,0.3608,111700.0,111690.0,0.08586934]
[1760141948448,0.13337174,111700.0,111690.0,0.17528144]
[1760141948740,0.49417174,111700.0,111690.0,0.57528174]
[1760141948932,0.13337174,111700.0,111690.0,0.57528174]
[1760141949140,0.04491486,111720.0,111710.0,0.09834524]
[1760141949343,0.3608,111740.0,111700.0,0.4502072]
[1760141949638,0.49579683,111710.0,111690.0,0.00894934]
[1760141949943,0.3608,111700.0,111690.0,0.00894934]
[1760141950138,0.36089481,111700.0,111690.0,0.01194934]
[1760141950335,0.49589164,111700.0,111690.0,0.41194934]
[1760141950641,0.0864133,111690.0,111680.0,0.00591688]
[1760141950831,0.3608,111690.0,111680.0,0.01486622]
[1760141951038,0.49473476,111690.0,111680.0,0.00591688]
[1760141951240,0.49173476,111690.0,111680.0,0.00591688]
[1760141952035,0.49173476,111690.0,111680.0,0.40591688]
[1760141952633,0.13393476,111690.0,111680.0,0.40591688]
[1760141952834,0.13393476,111690.0,111680.0,0.46916143]
[1760141953037,0.13393476,111690.0,111680.0,0.47015977]
[1760141953240,0.13393476,111690.0,111680.0,0.07010692]
[1760141953241,0.49473476,111690.0,111680.0,0.07010692]
[1760141953434,0.49473476,111690.0,111680.0,0.06910692]
[1760141953835,0.13393476,111690.0,111680.0,0.00591688]
[1760141954036,0.49473476,111690.0,111680.0,0.00591688]
[1760141954242,0.49473476,111690.0,111680.0,0.46906261]
[1760141954544,0.13393476,111690.0,111680.0,0.46906221]
[1760141954743,0.13393476,111690.0,111680.0,0.91927941]
[1760141954935,0.13393476,111690.0,111680.0,0.40591688]
[1760141954936,0.49473476,111690.0,111680.0,0.40591688]
[1760141955141,0.13393476,111690.0,111680.0,0.00591688]
[1760141955446,0.3608,111730.0,111720.0,0.08108]
[1760141955649,0.0446813,111760.0,111750.0,0.08108]
[1760141955940,0.0446813,111760.0,111680.0,0.44779688]
[1760141955941,0.13443709,111740.0,111680.0,0.44779688]
[1760141956144,0.3608,111710.0,111690.0,0.0894125]
[1760141956342,0.3608,111740.0,111700.0,0.44188]
[1760141956541,0.3608,111770.0,111740.0,0.08108]
[1760141956740,9.981e-05,111760.0,111750.0,0.4501643]
[1760141956940,0.49501803,111760.0,111740.0,0.5312581]
[1760141957249,0.49501803,111760.0,111720.0,0.5280174]
[1760141957250,0.3608,111750.0,111720.0,0.08108]
[1760141957552,0.60087507,111800.0,111720.0,0.08108]
[1760141957553,0.3608,111790.0,111770.0,0.0893519]
[1760141957842,0.13454966,111780.0,111770.0,0.4893442]
[1760141958042,0.3608,111790.0,111780.0,0.4893368]
[1760141958043,0.00056374,111790.0,111780.0,0.4893368]
[1760141958258,0.00056374,111790.0,111780.0,0.8501368]
[1760141958437,0.3608,111830.0,111800.0,0.0893249]
[1760141958641,0.3608,111830.0,111790.0,0.3608]
[1760141958843,9.481e-05,111790.0,111750.0,0.3608]
[1760141959043,0.3608,111770.0,111750.0,0.3608]
[1760141959347,0.13406318,111770.0,111760.0,0.4501566]
[1760141959547,0.13406318,111770.0,111750.0,0.3608]
[1760141959845,0.09262708,111770.0,111760.0,0.08946205]
[1760141960042,0.00010881,111790.0,111760.0,0.36090545]
[1760141960242,0.1336357,111770.0,111760.0,0.00010545]
[1760141960443,0.001,111770.0,111760.0,0.85026255]
[1760141960643,0.001,111770.0,111760.0,0.45026255]
[1760141960842,0.13368518,111770.0,111760.0,0.45026255]
[1760141961039,0.09356518,111770.0,111760.0,0.36090545]
[1760141961239,0.45445999,111770.0,111760.0,0.00010545]
[1760141961450,0.85445999,111770.0,111760.0,0.00010545]
[1760141961948,0.9553586,111770.0,111760.0,1.064e-05]
[1760141962151,0.94371428,111770.0,111760.0,1.064e-05]
[1760141962547,0.1728665,111740.0,111700.0,0.4501987]
[1760141962748,0.3608,111730.0,111690.0,0.3608]
[1760141962949,3e-08,111740.0,111730.0,0.0893808]
[1760141963145,0.13414963,111760.0,111750.0,0.089364]
[1760141963347,0.13614963,111770.0,111750.0,0.810964]
[1760141963550,0.13414963,111780.0,111760.0,0.3608]
[1760141963849,0.44429,111820.0,111780.0,0.0893402]
[1760141964044,0.46564026,111820.0,111760.0,0.807574]
[1760141964242,0.59949929,111820.0,111790.0,0.0893297]
[1760141964444,0.64466321,111820.0,111780.0,0.3608]
[1760141964641,0.64466321,111820.0,111790.0,0.0893256]
[1760141964852,0.64466321,111820.0,111790.0,0.4501256]
[1760141965049,0.64466321,111820.0,111810.0,0.0893161]
[1760141965257,0.64468509,111820.0,111790.0,0.089326]
[1760141965549,9.141e-05,111810.0,111790.0,0.3608]
[1760141965755,0.58340436,111820.0,111790.0,0.0893284]
[1760141965952,0.58340436,111820.0,111800.0,0.0893228]
[1760141965953,0.13422478,111810.0,111800.0,0.0893228]
[1760141966158,0.13422478,111820.0,111810.0,0.0893148]
[1760141966456,0.44429,111840.0,111810.0,0.0893148]
[1760141966457,0.08349,111840.0,111810.0,0.4501135]
[1760141966750,0.21712152,111840.0,111820.0,0.0893063]
[1760141966958,0.08349,111810.0,111770.0,0.450152]
[1760141967144,0.08349,111780.0,111750.0,0.3608]
[1760141967349,0.44429,111780.0,111760.0,0.0893616]
[1760141967554,0.44429,111780.0,111770.0,0.0893542]
[1760141967555,0.21712152,111780.0,111770.0,0.0893542]
[1760141967756,0.13363152,111780.0,111770.0,0.0893542]
[1760141968257,0.13363152,111780.0,111750.0,0.0443326]
[1760141968453,0.49443152,111780.0,111760.0,0.089358]
[1760141968651,0.3608,111770.0,111750.0,0.0893653]
[1760141968956,0.08349,111810.0,111780.0,0.0893353]
[1760141969253,0.13466565,111790.0,111780.0,0.450139]
[1760141969756,0.01147753,111810.0,111790.0,0.089334]
[1760141970056,0.50564677,111810.0,111780.0,0.4501405]
[1760141970261,0.0873243,111810.0,111790.0,0.4501321]
[1760141970754,0.45576753,111840.0,111800.0,0.4501275]
[1760141970949,0.09496753,111840.0,111820.0,0.3608]
[1760141971152,0.13415552,111830.0,111820.0,0.3608]
[1760141971352,0.41922445,111840.0,111810.0,0.3608]
[1760141971652,0.13789575,111830.0,111820.0,0.3608]
[1760141971856,0.00435253,111830.0,111800.0,0.3608]
[1760141972052,0.3608,111810.0,111760.0,0.04174]
[1760141972255,0.3608,111790.0,111760.0,0.3608]
[1760141972456,0.00435253,111770.0,111760.0,0.3608]
[1760141972654,0.08349,111780.0,111760.0,0.4501623]
[1760141972853,0.13408664,111770.0,111760.0,0.4501623]
[1760141973059,9.218e-05,111770.0,111760.0,0.4501623]
[1760141973260,0.00444471,111770.0,111750.0,0.4501679]
[1760141973456,0.13853135,111770.0,111750.0,0.4501679]
[1760141973760,0.13953135,111770.0,111760.0,0.4501618]
[1760141974058,0.08349,111760.0,111740.0,0.00010143]
[1760141974266,0.42707158,111750.0,111740.0,0.00010143]
[1760141974460,0.42707158,111750.0,111740.0,0.08947723]
[1760141974658,0.55750286,111750.0,111740.0,0.85027723]
[1760141975156,0.13478381,111750.0,111740.0,0.85027723]
[1760141975362,0.13478381,111750.0,111740.0,0.89201723]
[1760141975561,0.41138381,111750.0,111740.0,0.36090143]
[1760141975762,0.01138381,111750.0,111740.0,0.00010143]
[1760141975954,0.4501609,111760.0,111740.0,0.36090143]
[1760141976162,0.13446983,111750.0,111740.0,0.36090143]
[1760141976358,0.55718888,111760.0,111740.0,0.45027723]
[1760141976559,0.42271905,111760.0,111750.0,0.3608]
[1760141976763,0.42271905,111760.0,111740.0,0.00010143]
[1760141976764,0.55698517,111760.0,111740.0,0.00010143]
[1760141977064,1.09063937,111760.0,111740.0,0.00010143]
[1760141977458,0.64047517,111760.0,111740.0,0.00010143]
[1760141977665,0.64047517,111760.0,111740.0,0.45027373]
[1760141977963,0.64047517,111760.0,111750.0,0.3608]
[1760141978165,0.55698517,111760.0,111750.0,0.3608]
[1760141978370,0.55698517,111760.0,111740.0,0.45027373]
[1760141978371,8.495e-05,111750.0,111740.0,0.45027373]
[1760141978573,8.495e-05,111750.0,111740.0,1.21107373]
[1760141978757,0.10512333,111750.0,111740.0,1.21107373]
[1760141978958,0.42271905,111790.0,111770.0,0.0893483]
[1760141979257,0.42271905,111790.0,111780.0,0.4501439]
[1760141979258,0.13411558,111790.0,111780.0,0.4501439]
[1760141979464,0.13411558,111790.0,111780.0,0.8501439]
[1760141979663,0.50375544,111820.0,111790.0,0.0893349]
[1760141979862,0.38737458,111820.0,111810.0,0.3608]
[1760141980058,0.45125436,111820.0,111810.0,0.3608]
[1760141980462,0.13387978,111820.0,111810.0,0.3608]
[1760141980657,0.13387978,111820.0,111810.0,0.4501198]
[1760141980863,0.13387978,111820.0,111810.0,0.3608]
[1760141981161,0.13387978,111820.0,111790.0,0.3608]
[1760141981361,0.22319418,111820.0,111790.0,0.3608]
[1760141981565,0.2690041,111820.0,111800.0,0.3608]
[1760141981864,0.0610799,111860.0,111820.0,0.0893116]
[1760141982068,0.10669311,111880.0,111860.0,0.0892797]
[1760141982269,0.49935354,111900.0,111870.0,0.7216]
[1760141982270,0.50196835,111900.0,111870.0,0.7216]
[1760141982564,0.54625732,111900.0,111870.0,0.3608]
[1760141982771,0.46657562,111900.0,111870.0,0.3608]
[1760141982962,0.13353827,111900.0,111870.0,0.4500655]
[1760141983160,0.13353827,111900.0,111880.0,0.3608]
[1760141983161,0.17731422,111900.0,111880.0,0.3608]
[1760141984168,0.0892604,111890.0,111860.0,0.3608]
[1760141984377,0.0892754,111870.0,111850.0,0.3608]
[1760141984673,0.0892886,111850.0,111830.0,0.3608]
[1760141984865,0.44187,111860.0,111830.0,0.3608]
[1760141985178,0.13369295,111850.0,111840.0,0.3608]
[1760141985365,0.21476295,111860.0,111840.0,0.3608]
[1760141985562,0.08107,111860.0,111850.0,0.3608]
[1760141985776,0.66590737,111860.0,111840.0,0.3608]
[1760141986168,0.8500887,111850.0,111820.0,0.45020358]
[1760141986368,0.21583147,111860.0,111840.0,0.3608]
[1760141986676,1.0252898,111880.0,111850.0,0.3608]
[1760141986868,0.13419453,111860.0,111840.0,0.3608]
[1760141987067,0.531149,111860.0,111830.0,0.3608]
[1760141987364,0.30454353,111860.0,111840.0,0.3608]
[1760141987567,0.81535393,111860.0,111830.0,0.3608]
[1760141987769,0.3608,111850.0,111830.0,0.3608]
[1760141988068,0.5311621,111840.0,111820.0,9.608e-05]
[1760141988271,9.388e-05,111830.0,111820.0,0.36089608]
[1760141988473,9.388e-05,111830.0,111820.0,9.608e-05]
[1760141988772,0.53502443,111830.0,111820.0,9.608e-05]
[1760141988971,0.0893126,111820.0,111800.0,0.3608]
[1760141989269,0.0893158,111810.0,111790.0,0.3608]
[1760141989469,0.2688391,111820.0,111800.0,0.3608]
[1760141989674,0.44113079,111830.0,111810.0,0.3608]
[1760141989868,0.47202035,111830.0,111820.0,0.3608]
[1760141990069,0.47202035,111830.0,111810.0,0.3608]
[1760141990070,0.51713576,111830.0,111810.0,0.3608]
[1760141990265,0.43643716,111830.0,111810.0,0.3608]
[1760141990974,0.18279913,111830.0,111810.0,0.3608]
[1760141991275,0.27210373,111830.0,111810.0,0.3608]
[1760141991465,0.27310373,111830.0,111810.0,0.3608]
[1760141991664,0.00011215,111820.0,111810.0,0.3608]
[1760141992072,0.13383283,111820.0,111810.0,0.3608]
[1760141992470,0.13383283,111820.0,111800.0,0.3608]
[1760141992772,0.0893256,111810.0,111790.0,0.3608]
[1760141992971,0.0893203,111810.0,111790.0,0.3608]
[1760141993171,0.22416054,111810.0,111790.0,0.3608]
[1760141993567,0.13484024,111810.0,111790.0,0.3608]
[1760141993774,0.13484024,111810.0,111800.0,0.3608]
[1760141994378,0.13492125,111810.0,111800.0,0.8501278]
[1760141994772,0.13492125,111810.0,111800.0,0.7216]
[1760141994968,0.13492125,111810.0,111800.0,0.3608]
[1760141995169,0.1654319,111820.0,111790.0,0.3608]
[1760141995375,0.13427751,111810.0,111800.0,0.3608]
[1760141995572,0.13427751,111810.0,111800.0,0.4906682]
[1760141995875,0.0892812,111860.0,111820.0,0.05016]
[1760141996081,0.00010551,111850.0,111820.0,0.41096]
[1760141996271,0.13447025,111830.0,111820.0,0.45011]
[1760141996479,0.15479401,111860.0,111820.0,0.81091]
[1760141996671,0.51559401,111860.0,111830.0,0.3608]
[1760141996980,0.13463306,111850.0,111830.0,0.3608]
[1760141997174,0.29042707,111860.0,111830.0,0.3608]
[1760141997377,0.001,111860.0,111850.0,0.3608]
[1760141997576,0.13463306,111860.0,111850.0,0.4500877]
[1760141997777,0.01763306,111860.0,111850.0,0.3608]
[1760141997977,0.41763306,111860.0,111850.0,0.3608]
[1760141998277,0.01763306,111860.0,111850.0,0.7608]
[1760141998471,0.01773201,111860.0,111850.0,0.7608]
[1760141998679,0.01773201,111860.0,111820.0,0.3608]
[1760141998680,0.0893046,111830.0,111820.0,0.3608]
[1760141998880,0.1654189,111840.0,111820.0,0.3608]
[1760141999081,0.22328104,111830.0,111820.0,0.3608]
[1760141999276,0.4893046,111830.0,111820.0,0.3608]
[1760141999477,0.0893046,111830.0,111820.0,0.3608]
[1760141999679,0.22328104,111830.0,111820.0,0.3608]
[1760141999886,0.13397644,111830.0,111820.0,0.3608]
[1760142000080,0.22328104,111830.0,111820.0,0.3608]
[1760142000281,0.62328104,111830.0,111820.0,0.3608]
[1760142000478,0.13397644,111830.0,111820.0,0.3608]
[1760142000787,0.13404584,111830.0,111820.0,0.9305726]
[1760142001078,0.57072702,111900.0,111820.0,0.9305726]
[1760142001079,0.42271905,111920.0,111860.0,0.4464036]
[1760142001280,0.92096546,111960.0,111910.0,0.3608]
[1760142001479,0.56016546,111960.0,111950.0,0.3608]
[1760142001680,0.0892089,111950.0,111940.0,0.3608]
[1760142001877,0.04608028,111950.0,111940.0,0.3608]
[1760142002080,0.94122202,111950.0,111920.0,0.3608]
[1760142002286,0.0892331,111920.0,111910.0,0.3608]
[1760142002579,0.0892411,111910.0,111900.0,9.713e-05]
[1760142002780,0.4892411,111910.0,111900.0,9.713e-05]
[1760142002982,0.22331744,111910.0,111900.0,9.713e-05]
[1760142003285,0.089265,111880.0,111870.0,0.3608]
[1760142003590,0.12220028,111930.0,111870.0,0.7216]
[1760142003783,0.13407634,111880.0,111870.0,0.3608]
[1760142003979,0.0892575,111890.0,111870.0,0.3608]
[1760142004175,0.0892485,111910.0,111880.0,0.3608]
[1760142004479,0.22373938,111890.0,111880.0,0.3608]
[1760142004674,0.13448238,111900.0,111880.0,0.3608]
[1760142004976,0.13529918,111940.0,111900.0,0.0892432]
[1760142005288,0.13446111,111940.0,111930.0,0.3608]
[1760142005882,0.13446111,111940.0,111930.0,0.4500251]
[1760142006181,0.12220028,111980.0,111940.0,0.0892165]
[1760142006384,0.04608028,111980.0,111970.0,0.3608]
[1760142006580,0.18027641,111980.0,111970.0,0.3608]
[1760142006785,0.22338113,111980.0,111970.0,0.3608]
[1760142006986,0.18027641,111980.0,111970.0,0.3608]
[1760142007281,0.269567,111980.0,111970.0,0.3608]
[1760142007679,0.181382,111980.0,111970.0,0.7608]
[1760142008076,0.270567,111980.0,111970.0,0.3608]
[1760142008281,0.272567,111980.0,111970.0,0.3608]
[1760142008784,0.22648672,111980.0,111970.0,0.3608]
[1760142009088,0.272567,111980.0,111970.0,0.3608]
[1760142009287,0.13730172,111980.0,111970.0,0.7608]
[1760142009680,0.16805926,111980.0,111970.0,0.7608]
[1760142009876,0.16805926,111980.0,111970.0,0.3608]
[1760142011088,0.25724366,111980.0,111970.0,0.3608]
[1760142011276,0.0892004,111960.0,111950.0,0.3608]
[1760142011480,0.21629068,111960.0,111950.0,0.3608]
[1760142011683,0.0892083,111950.0,111940.0,0.3608]
[1760142011884,0.30381401,111960.0,111940.0,0.3608]
[1760142012082,0.42271905,111970.0,111950.0,0.4500028]
[1760142012283,0.003,111980.0,111960.0,0.4499946]
[1760142012583,0.13673487,111980.0,111970.0,0.4499924]
[1760142012783,0.13573487,111980.0,111970.0,0.8499924]
[1760142012988,0.13332957,112040.0,111990.0,0.0891696]
[1760142013185,0.0307542,112060.0,112030.0,0.3608]
[1760142013385,0.0307542,112070.0,112050.0,0.3608]
[1760142013590,0.0307542,112080.0,112060.0,0.3608]
[1760142013883,0.16376602,112080.0,112070.0,0.3608]
[1760142014082,0.04608028,112090.0,112070.0,0.3608]
[1760142014083,0.03070741,112100.0,112090.0,0.0890968]
[1760142014383,0.04608028,112130.0,112090.0,0.4498966]
[1760142014591,0.13301182,112100.0,112090.0,0.3608]
[1760142014786,0.17999121,112130.0,112090.0,0.7216]
[1760142014983,0.0307542,112120.0,112110.0,0.3608]
[1760142015285,0.13391093,112120.0,112110.0,0.7216]
[1760142015483,0.08101,112110.0,112090.0,0.3608]
[1760142015790,0.30411903,112110.0,112090.0,0.3608]
[1760142015980,0.03083671,112100.0,112090.0,0.3608]
[1760142016188,0.03283671,112100.0,112090.0,0.3608]
[1760142016488,0.16686594,112100.0,112090.0,0.3608]
[1760142016880,0.16486594,112100.0,112090.0,0.7608]
[1760142017086,0.16486594,112100.0,112090.0,0.3608]
[1760142017291,0.16486594,112100.0,112090.0,0.4498921]
[1760142017490,0.13411174,112100.0,112090.0,0.8498921]
[1760142017788,0.13611174,112100.0,112090.0,0.3608]
[1760142018184,0.16686594,112100.0,112080.0,0.3608]
[1760142018488,0.08101,112080.0,112070.0,0.3608]
[1760142018681,0.1117642,112080.0,112070.0,0.3608]
[1760142018888,0.21563679,112080.0,112070.0,0.3608]
[1760142019187,0.13462679,112080.0,112070.0,0.3608]
[1760142019388,0.13462679,112080.0,112070.0,0.7608]
[1760142019590,0.13462679,112080.0,112070.0,0.3608]
[1760142019786,0.22372669,112080.0,112070.0,0.3608]
[1760142020088,0.97643679,112080.0,112050.0,0.3300458]
[1760142020290,0.08101,112050.0,112030.0,0.3608]
[1760142020592,0.0891317,112040.0,112030.0,0.3608]
[1760142020784,0.08920974,112040.0,112030.0,0.3608]
[1760142020987,0.0891397,112030.0,112020.0,9.211e-05]
[1760142021195,0.8499397,112030.0,112020.0,9.211e-05]
[1760142021386,0.98328518,112030.0,112020.0,9.211e-05]
[1760142021694,0.0891542,112010.0,112000.0,0.3608]
[1760142021892,0.0891542,112010.0,111990.0,0.3608]
[1760142022187,0.0891606,112000.0,111990.0,0.3608]
[1760142022689,0.2236857,112000.0,111990.0,0.3608]
[1760142022894,0.0891685,111990.0,111980.0,0.3608]
[1760142023190,0.0891844,111970.0,111960.0,0.3608]
[1760142023390,0.57546683,111990.0,111960.0,0.3608]
[1760142023391,0.21466683,111990.0,111960.0,0.3608]
[1760142023593,0.42279783,112000.0,111980.0,0.7216]
[1760142023788,0.42279783,112000.0,111990.0,0.3608]
[1760142023985,0.13462021,112000.0,111990.0,0.8499685]
[1760142024185,0.13462021,112000.0,111990.0,0.7608]